bitfinex/quotes_ETHUSD_20240618
["timestamp","ask_amount","ask_price","bid_price","bid_amount"]
[1718748295217,0.89645686,3474.4,3473.4,3.0]
[1718748295440,0.89645686,3474.4,3473.4,5.87901]
[1718748295963,0.89645686,3474.5,3473.5,1.73]
[1718748296133,0.89645686,3474.4,3473.5,3.049728]
[1718748296456,0.89645686,3474.4,3473.6,3.55]
[1718748297260,0.89645686,3474.2,3473.6,3.0]
[1718748297461,0.89645686,3474.1,3473.3,1.73]
[1718748299317,3.36585686,3474.3,3473.5,1.73]
[1718748299521,3.36585686,3474.3,3473.6,0.55]
[1718748299862,2.4694,3474.3,3473.6,0.55]
[1718748300063,2.4694,3474.3,3473.6,1.96771564]
[1718748300282,0.89645686,3474.4,3473.6,9.545643]
[1718748300575,1.19779899,3474.5,3473.6,6.666803]
[1718748300576,0.89645686,3474.3,3473.6,6.666803]
[1718748300781,0.89645686,3474.2,3473.6,3.0]
[1718748300937,1.19779899,3474.4,3473.4,3.0]
[1718748300938,0.89645686,3474.1,3473.4,3.0]
[1718748301736,0.89645686,3474.1,3473.6,1.73]
[1718748301964,0.89645686,3474.3,3473.7,0.53072191]
[1718748302486,0.89645686,3474.2,3473.8,2.28]
[1718748302651,0.89645686,3474.4,3473.9,2.59894219]
[1718748302851,0.89645686,3474.4,3473.6,3.0]
[1718748303040,0.89645686,3474.2,3473.5,1.73]
[1718748303237,0.89645686,3474.2,3473.6,0.55]
[1718748303442,0.89645686,3474.3,3473.8,4.90961]
[1718748303760,2.4694,3474.8,3473.6,3.55]
[1718748303761,2.09425585,3474.8,3474.2,6.63934]
[1718748303967,3.9633592,3475.2,3474.2,6.63934]
[1718748303968,0.89645686,3474.9,3474.2,2.031]
[1718748304131,0.89645686,3474.6,3473.7,3.0]
[1718748304331,0.89645686,3474.6,3473.6,0.55]
[1718748304332,0.89645686,3474.6,3473.8,2.581]
[1718748304535,0.89645686,3474.5,3473.9,3.55]
[1718748305146,1.19779899,3474.7,3473.9,3.55]
[1718748305147,0.89645686,3474.6,3473.9,3.55]
[1718748305366,0.89645686,3474.6,3473.9,4.3599]
[1718748305939,0.89645686,3474.7,3473.9,4.3599]
[1718748306172,0.89645686,3474.6,3473.9,4.3599]
[1718748306371,0.89645686,3474.5,3473.9,4.3599]
[1718748306772,0.89645686,3474.7,3474.0,5.20175924]
[1718748307073,0.89645686,3474.7,3474.1,3.0]
[1718748307276,0.89645686,3474.5,3473.9,3.0]
[1718748307439,0.89645686,3474.5,3474.0,2.28]
[1718748307640,0.89645686,3474.7,3474.2,1.73]
[1718748308051,0.89645686,3474.8,3474.2,1.73]
[1718748308744,0.89645686,3474.7,3474.2,1.73]
[1718748309581,0.89645686,3474.7,3474.1,3.0]
[1718748309775,0.89645686,3474.8,3474.0,0.55]
[1718748309977,0.89645686,3474.7,3474.0,1.683827]
[1718748310275,0.89645686,3474.5,3473.9,3.0]
[1718748310464,0.89645686,3474.5,3473.8,2.031]
[1718748310686,0.89645686,3474.4,3473.8,2.031]
[1718748311653,0.89645686,3474.3,3473.8,2.031]
[1718748312816,0.89645686,3474.5,3473.9,2.28]
[1718748313190,0.89645686,3474.5,3474.0,0.718975]
[1718748313390,0.89645686,3474.5,3474.0,3.718975]
[1718748314506,0.89645686,3474.4,3474.0,3.718975]
[1718748315344,0.89645686,3474.5,3474.1,1.73]
[1718748315637,0.89645686,3474.6,3474.5,4.60811]
[1718748315923,0.89645686,3474.9,3474.5,4.73]
[1718748316216,0.89645686,3475.0,3474.6,2.31441774]
[1718748316435,0.89645686,3475.0,3474.7,0.55]
[1718748316599,0.89645686,3474.9,3474.7,3.0]
[1718748316929,0.89645686,3474.9,3474.4,4.73]
[1718748317127,0.89645686,3474.9,3474.4,5.54987565]
[1718748317489,0.89645686,3475.0,3474.4,8.42799565]
[1718748318043,0.89645686,3474.9,3474.5,2.87804]
[1718748318334,0.89645686,3475.1,3474.8,2.87784]
[1718748318541,0.89645686,3475.2,3474.8,2.87784]
[1718748318746,0.89645686,3475.2,3474.9,3.0]
[1718748319562,0.89645686,3475.4,3475.0,3.42769]
[1718748319851,0.89645686,3475.5,3475.1,3.0]
[1718748320359,0.89645686,3475.7,3475.0,6.42768]
[1718748320524,0.89645686,3475.7,3475.1,5.42745565]
[1718748320729,0.89645686,3475.8,3475.2,3.55]
[1718748321350,0.89645686,3475.8,3475.2,6.42752]
[1718748321762,0.89645686,3475.8,3475.2,8.15752]
[1718748321989,0.89645686,3475.9,3475.3,1.73]
[1718748322138,0.89645686,3475.9,3475.4,0.55]
[1718748322339,0.89645686,3475.9,3475.4,3.42735]
[1718748322535,0.89645686,3476.0,3475.5,3.0]
[1718748322853,0.89645686,3476.1,3475.5,5.87727]
[1718748323369,0.89645686,3476.2,3475.5,5.87727]
[1718748324142,3.56545686,3476.3,3475.5,5.87727]
[1718748324966,0.89645686,3476.3,3475.7,1.73]
[1718748325153,0.89645686,3476.6,3475.8,4.60696]
[1718748325362,0.89645686,3476.6,3475.9,3.0]
[1718748325721,0.89645686,3476.6,3475.9,5.87694]
[1718748325998,3.79669899,3476.8,3475.9,5.87694]
[1718748325999,0.89645686,3476.7,3476.1,1.73]
[1718748326141,2.5989,3476.8,3476.2,4.6067]
[1718748326769,0.89645686,3477.1,3476.4,2.87653]
[1718748327077,2.5635,3477.2,3476.5,6.42643]
[1718748327299,2.5635,3477.2,3476.5,3.42643]
[1718748327588,2.5635,3477.2,3476.6,3.0]
[1718748328095,3.45995686,3477.6,3476.7,5.15622]
[1718748328377,2.5635,3477.6,3476.8,3.0]
[1718748329238,2.5635,3477.6,3476.7,2.28]
[1718748329874,2.5635,3477.6,3476.8,2.8762]
[1718748330037,2.89232529,3477.6,3476.7,2.28]
[1718748330365,2.87594,3477.2,3476.6,3.0]
[1718748330563,0.89645686,3477.5,3476.4,1.73]
[1718748330869,0.98931611,3477.5,3476.4,1.73]
[1718748331069,5.76787529,3477.6,3476.4,1.73]
[1718748331451,2.89232529,3477.6,3476.4,1.73]
[1718748331654,2.89232529,3477.6,3476.7,1.73]
[1718748331996,2.89232529,3477.6,3476.8,0.11709716]
[1718748332179,0.28923253,3477.5,3476.8,0.11709716]
[1718748332672,2.89232529,3477.6,3476.8,0.11709716]
[1718748332673,2.5635,3477.6,3476.8,0.11709716]
[1718748333047,2.5635,3477.6,3476.9,2.28]
[1718748333445,2.5635,3477.6,3477.0,0.11709377]
[1718748333655,2.4867,3478.2,3477.2,4.60586]
[1718748334154,2.4867,3478.2,3477.3,0.66701083]
[1718748334353,2.4867,3478.2,3477.5,1.73]
[1718748334559,2.4867,3478.2,3477.6,2.39700575]
[1718748335974,0.18717566,3478.6,3477.6,2.39700575]
[1718748336174,0.26198757,3478.5,3477.6,2.39700575]
[1718748336999,0.18717566,3478.6,3477.6,2.39700575]
[1718748339601,2.4327,3478.7,3477.6,2.39700575]
[1718748341606,5.30733,3478.7,3477.6,2.39700575]
[1718748342189,2.87489,3478.4,3477.6,0.11700575]
[1718748342388,2.87503,3478.3,3477.6,0.11700575]
[1718748342564,2.87503,3478.3,3476.9,2.702]
[1718748342565,2.4327,3478.7,3477.2,2.8758]
[1718748342782,0.24327,3478.6,3477.3,3.8924007]
[1718748342970,0.24327,3478.6,3477.3,0.8924007]
[1718748342971,2.87489,3478.4,3477.3,0.8924007]
[1718748343160,2.87498,3478.3,3477.4,1.73]
[1718748343369,2.87481,3478.5,3477.5,0.11629219]
[1718748343677,2.87489,3478.4,3477.6,2.28]
[1718748344072,2.87506,3478.2,3477.7,0.1162888]
[1718748344289,2.87515,3478.1,3477.7,0.1162888]
[1718748344525,2.87515,3478.1,3477.1,1.73]
[1718748344700,2.87515,3478.1,3477.8,0.11641309]
[1718748345011,2.87515,3478.1,3477.1,1.73]
[1718748345382,2.87522,3478.0,3477.2,0.11642325]
[1718748345584,2.87506,3478.2,3477.2,0.11642325]
[1718748345795,2.87521,3478.1,3477.2,0.11642325]
[1718748346001,2.8753,3477.9,3477.2,0.11642325]
[1718748346502,2.87522,3478.0,3476.7,1.73]
[1718748346705,2.87522,3478.0,3477.3,0.11643268]
[1718748346908,2.87522,3478.0,3476.9,1.73]
[1718748347111,2.8753,3477.9,3477.0,0.55]
[1718748347282,2.87547,3477.7,3477.0,0.11643776]
[1718748347490,3.720001,3477.6,3477.0,0.11643776]
[1718748347806,3.720001,3477.6,3477.1,0.11644718]
[1718748348175,3.720001,3477.6,3476.5,1.73]
[1718748348378,2.8756,3477.6,3476.6,0.11655201]
[1718748348676,2.8756,3477.6,3476.7,2.28]
[1718748348876,2.87547,3477.7,3476.7,2.28]
[1718748348877,2.87566,3477.5,3476.7,2.28]
[1718748349076,2.87566,3477.5,3476.8,0.11654862]
[1718748349272,3.450773,3477.5,3476.8,0.11654862]
[1718748351411,0.575113,3477.5,3476.8,0.11654862]
[1718748351598,5.56854,3477.9,3476.8,0.11654862]
[1718748351798,2.87544,3477.8,3476.8,0.11654862]
[1718748352510,2.6932,3477.9,3476.9,2.28]
[1718748352715,2.87498,3478.3,3476.9,5.1561]
[1718748353010,2.87504,3478.3,3477.1,1.73]
[1718748353209,2.87504,3478.3,3477.3,1.73]
[1718748353210,2.87515,3478.1,3477.3,1.73]
[1718748353712,2.87515,3478.1,3477.4,0.11687571]
[1718748354102,2.87505,3478.2,3477.3,1.73]
[1718748354414,2.87498,3478.3,3477.4,0.1167571]
[1718748354990,2.87506,3478.2,3477.4,0.1167571]
[1718748355584,2.87506,3478.2,3477.0,1.73]
[1718748355886,2.87506,3478.2,3477.2,1.73]
[1718748356235,2.87498,3478.3,3477.3,0.11675879]
[1718748357307,2.87498,3478.3,3477.3,2.16799657]
[1718748358121,2.5628,3478.5,3477.3,2.16799657]
[1718748358343,2.87459,3478.8,3477.5,1.73]
[1718748358487,2.87459,3478.8,3477.6,2.28]
[1718748358686,2.87459,3478.8,3477.6,2.39665735]
[1718748358902,2.87459,3478.8,3477.6,2.87114686]
[1718748359883,2.87465,3478.7,3477.6,2.87114686]
[1718748360925,2.87453,3478.9,3477.6,2.87114686]
[1718748361090,2.87464,3478.7,3477.6,2.87114686]
[1718748361290,2.87479,3478.6,3477.6,2.87114686]
[1718748362528,3.77102686,3478.8,3477.6,2.87114686]
[1718748362727,2.09002301,3478.7,3477.6,2.87114686]
[1718748362897,3.37216547,3478.7,3477.6,2.87114686]
[1718748363216,2.09001168,3478.6,3477.6,2.87114686]
[1718748363596,2.87496,3478.3,3477.6,0.11665735]
[1718748363853,2.87523,3478.0,3476.6,5.027]
[1718748364326,2.4405,3478.2,3476.6,4.90336]
[1718748364327,3.33695686,3478.2,3476.6,4.90336]
[1718748364629,3.33695686,3478.2,3476.9,1.73]
[1718748364630,2.87515,3478.1,3476.9,1.73]
[1718748364826,2.87524,3478.0,3477.0,0.02169588]
[1718748365029,2.87524,3478.0,3477.0,2.41804471]
[1718748365337,2.87524,3478.0,3477.0,2.39634883]
[1718748365631,1.02850559,3478.0,3477.0,2.39634883]
[1718748365923,2.8753,3477.9,3477.0,2.39634883]
[1718748366731,3.77175686,3477.9,3477.0,2.39634883]
[1718748367050,2.87538,3477.8,3477.0,2.39634883]
[1718748367591,0.89645686,3477.9,3477.0,2.39634883]
[1718748367831,3.77182686,3477.9,3477.0,1.28378201]
[1718748368033,3.77182686,3477.9,3477.0,4.28378201]
[1718748368205,2.09025112,3477.8,3477.0,4.28378201]
[1718748368409,2.98670798,3477.8,3477.0,4.28378201]
[1718748368617,0.89645686,3477.8,3477.0,4.28378201]
[1718748369128,5.86221626,3477.7,3477.0,0.66634883]
[1718748369331,5.86234377,3477.6,3477.0,0.11634883]
[1718748369494,2.87572,3477.4,3477.0,0.11634883]
[1718748369827,2.87572,3477.4,3476.7,1.73]
[1718748369828,2.4677111,3477.3,3476.7,1.73]
[1718748370054,2.4677111,3477.3,3477.1,0.11648424]
[1718748370055,0.89645686,3477.3,3477.1,0.11648424]
[1718748370197,0.89645686,3477.3,3476.4,1.73]
[1718748370399,2.98699227,3477.2,3476.5,0.11649441]
[1718748370628,2.09066517,3477.1,3476.5,0.11649441]
[1718748370936,3.77260686,3476.9,3476.5,0.11649441]
[1718748371103,0.89645686,3476.7,3476.5,0.11649441]
[1718748371295,0.89645686,3476.7,3476.1,9.06]
[1718748371503,0.89645686,3476.8,3476.6,0.11649271]
[1718748371728,0.89645686,3476.8,3476.3,1.73]
[1718748371925,0.89645686,3476.8,3476.7,0.11649102]
[1718748372102,0.89645686,3476.8,3476.3,1.73]
[1718748372312,0.89645686,3476.8,3476.7,0.11649102]
[1718748372509,2.9872106,3476.8,3476.4,3.4793]
[1718748372733,0.89645686,3476.8,3476.7,0.11649102]
[1718748372930,0.89645686,3476.8,3476.4,2.28]
[1718748373140,0.89645686,3476.7,3476.4,2.28]
[1718748374339,0.89645686,3476.6,3476.4,2.28]
[1718748374520,0.89645686,3476.7,3476.4,2.28]
[1718748375338,0.89645686,3476.7,3475.9,1.73]
[1718748375522,0.89645686,3476.6,3476.1,1.73]
[1718748375730,0.89645686,3476.7,3476.2,0.55]
[1718748376107,1.19779899,3476.8,3476.2,0.55]
[1718748376108,0.89645686,3476.6,3476.2,0.55]
[1718748377447,1.19779899,3476.8,3476.2,0.55]
[1718748377448,0.89645686,3476.7,3476.2,0.55]
[1718748377743,0.89645686,3476.7,3476.2,5.5874]
[1718748377959,0.89645686,3476.9,3476.2,5.1567]
[1718748378256,0.89645686,3476.9,3476.2,2.28]
[1718748378613,0.89645686,3476.8,3476.2,2.28]
[1718748378809,0.89645686,3476.8,3476.4,1.73]
[1718748379128,0.89645686,3476.8,3476.5,0.55]
[1718748379548,0.89645686,3476.9,3476.5,0.55]
[1718748380013,0.89645686,3476.8,3476.5,0.55]
[1718748380429,0.89645686,3476.8,3476.3,1.73]
[1718748380618,0.89645686,3476.8,3476.4,2.28]
[1718748380820,0.89645686,3476.8,3476.4,1.73]
[1718748381040,0.89645686,3476.8,3476.5,0.55]
[1718748381819,0.89645686,3476.8,3476.4,2.28]
[1718748382564,0.89645686,3476.7,3476.0,4.73]
[1718748382859,0.89645686,3476.7,3475.9,1.73]
[1718748383014,0.89645686,3476.7,3475.8,3.0]
[1718748383015,0.89645686,3476.7,3476.0,2.4057]
[1718748383222,0.89645686,3476.7,3476.1,0.11710162]
[1718748383522,0.89645686,3476.8,3476.1,3.11710162]
[1718748383722,0.89645686,3476.8,3476.2,2.28]
[1718748384029,0.89645686,3476.8,3476.2,2.39709993]
[1718748384234,0.89645686,3476.7,3476.2,2.39709993]
[1718748385237,0.89645686,3476.6,3476.2,2.39709993]
[1718748386425,0.89645686,3476.7,3476.2,2.39709993]
[1718748386757,0.89645686,3476.6,3476.2,2.39709993]
[1718748388868,0.89645686,3476.7,3476.2,2.39709993]
[1718748389069,0.89645686,3476.8,3476.2,2.63680992]
[1718748389275,0.89645686,3476.8,3476.4,2.87652]
[1718748389490,0.89645686,3477.2,3476.5,5.83133299]
[1718748389630,1.19779899,3477.4,3476.5,5.28]
[1718748389631,0.89645686,3477.1,3476.5,5.28]
[1718748389829,0.89645686,3477.1,3476.5,5.39721718]
[1718748390034,0.89645686,3477.2,3476.5,5.39721718]
[1718748390256,0.89645686,3477.2,3476.7,1.73]
[1718748390466,0.89645686,3477.2,3476.8,2.28]
[1718748390881,0.89645686,3477.2,3476.8,2.39721209]
[1718748392269,0.89645686,3477.3,3476.8,2.39721209]
[1718748392484,0.89645686,3477.3,3476.9,0.32245868]
[1718748392785,0.89645686,3477.3,3477.0,0.55]
[1718748393086,0.89645686,3477.2,3477.0,0.55]
[1718748393389,0.89645686,3477.3,3477.1,0.11695123]
[1718748393584,0.89645686,3477.2,3477.1,0.11695123]
[1718748395745,0.89705036,3477.2,3477.1,0.11695123]
[1718748396949,3.58450486,3477.3,3477.1,0.11695123]
[1718748397149,2.09059613,3477.2,3476.3,1.73]
[1718748397349,0.89701622,3477.0,3476.3,1.73]
[1718748397963,0.89701622,3477.0,3476.4,1.73]
[1718748398163,0.89701622,3477.0,3476.5,0.55]
[1718748398371,0.89701622,3476.9,3476.5,0.55]
[1718748398695,0.89701622,3476.9,3476.6,0.11697824]
[1718748398910,0.89701622,3476.7,3476.6,0.11697824]
[1718748399200,0.89701622,3476.7,3476.6,0.66697824]
[1718748400055,0.89701622,3476.7,3476.6,0.11697824]
[1718748400361,1.49390873,3476.8,3476.1,3.0]
[1718748400588,0.8969742,3476.6,3476.0,1.73]
[1718748400793,0.8969742,3476.7,3476.0,1.73]
[1718748401299,0.8969742,3476.3,3475.8,1.73]
[1718748401661,0.8969742,3476.3,3475.6,4.73]
[1718748401866,0.8969742,3476.5,3475.6,4.73]
[1718748402166,0.8969742,3476.4,3475.7,2.98116]
[1718748402355,0.8969742,3476.5,3476.1,2.87677]
[1718748402556,1.19594507,3476.7,3476.1,1.73]
[1718748402557,0.8969742,3476.7,3476.1,1.73]
[1718748403068,0.8969742,3476.7,3476.2,0.55]
[1718748403288,0.8969742,3476.6,3476.2,0.55]
[1718748403795,0.8969742,3476.6,3476.1,2.28]
[1718748404091,0.8969742,3476.7,3476.1,2.795693]
[1718748404391,0.8969742,3476.6,3476.1,2.28]
[1718748404603,0.8969742,3476.6,3476.1,3.083389]
[1718748404799,0.8969742,3476.7,3476.1,3.083389]
[1718748404958,0.8969742,3476.6,3476.1,3.083389]
[1718748405689,0.8969742,3476.5,3476.1,3.083389]
[1718748405894,0.8969742,3476.5,3476.1,2.28]
[1718748408406,0.8969742,3476.4,3476.1,2.28]
[1718748409007,0.8969742,3476.4,3476.1,0.55]
[1718748409183,0.8969742,3476.4,3475.2,2.87748]
[1718748409184,0.8969742,3476.3,3475.6,3.0]
[1718748409381,0.8969742,3476.0,3475.4,5.027]
[1718748409612,0.8969742,3475.9,3475.4,5.027]
[1718748409795,0.8969742,3475.9,3475.4,5.89357354]
[1718748410100,0.8969742,3475.9,3475.5,1.73]
[1718748410413,0.8969742,3475.9,3475.5,4.73]
[1718748410580,0.8969742,3475.9,3475.6,2.28]
[1718748410906,0.8969742,3475.9,3475.6,5.28]
[1718748411270,0.8969742,3475.8,3474.9,0.28247418]
[1718748411472,0.8969742,3475.7,3474.8,5.027]
[1718748411715,0.8969742,3475.7,3474.9,1.811286]
[1718748411884,0.8969742,3475.7,3475.1,2.87755]
[1718748412089,0.8969742,3475.7,3475.2,3.0]
[1718748412325,3.3737742,3475.7,3474.8,1.73]
[1718748412473,0.8969742,3475.6,3474.8,1.73]
[1718748412977,3.67274507,3475.7,3475.1,1.73]
[1718748412978,0.8969742,3475.5,3475.1,1.73]
[1718748413184,0.8969742,3475.5,3475.2,0.11346306]
[1718748413392,0.8969742,3475.6,3475.2,0.11346306]
[1718748413994,0.8969742,3475.5,3475.3,0.55]
[1718748414211,0.8969742,3475.4,3475.2,0.11346306]
[1718748414409,0.8969742,3475.4,3475.0,1.73]
[1718748414719,0.8969742,3475.4,3475.1,0.55]
[1718748415425,0.8969742,3475.4,3474.4,0.28891846]
[1718748415426,0.8969742,3475.2,3474.1,10.20843]
[1718748415715,0.89652529,3475.0,3474.2,3.0]
[1718748415918,0.89652529,3474.9,3474.2,3.0]
[1718748416093,0.89652529,3474.9,3474.0,2.027]
[1718748416298,0.89652529,3474.9,3473.7,1.73]
[1718748416484,0.89652529,3474.8,3473.7,4.73]
[1718748416683,0.89652529,3474.7,3473.7,4.6087]
[1718748416884,0.89652529,3474.7,3473.9,1.73]
[1718748417419,4.37270582,3475.1,3473.9,1.73]
[1718748417420,0.89652529,3474.8,3473.9,1.73]
[1718748418189,3.37332529,3474.7,3473.9,1.73]
[1718748418393,1.03250104,3474.6,3473.8,1.73]
[1718748418614,1.03250104,3474.6,3474.0,0.55]
[1718748418809,1.03250104,3474.6,3473.9,2.28]
[1718748418810,1.92902633,3474.6,3473.9,2.28]
[1718748419008,1.62490292,3474.5,3473.6,1.73]
[1718748419419,0.72837763,3474.5,3473.6,1.73]
[1718748419810,0.72837763,3474.5,3473.3,1.73]
[1718748419811,2.8782,3474.4,3473.3,1.73]
[1718748420140,2.87834,3474.3,3473.3,1.73]
[1718748420437,0.89652529,3474.3,3473.4,2.87901]
[1718748420724,4.56927036,3474.7,3473.1,2.32431256]
[1718748420929,0.89652529,3474.5,3473.2,0.23243126]
[1718748421130,0.89652529,3474.5,3473.3,5.75806]
[1718748421339,1.65287211,3474.6,3473.4,1.73]
[1718748421340,4.23150233,3474.6,3473.4,1.73]
[1718748421542,4.23150233,3474.6,3473.5,2.76414613]
[1718748421730,1.35345233,3474.6,3473.5,2.76414613]
[1718748422319,2.4768,3474.7,3473.9,1.73]
[1718748422521,2.4768,3474.7,3474.0,0.55]
[1718748423313,2.4768,3474.7,3473.2,3.11159126]
[1718748423314,2.4768,3474.7,3473.1,1.73]
[1718748423625,2.87845,3474.1,3473.1,1.73]
[1718748424043,5.35517,3474.2,3473.1,1.73]
[1718748424342,2.4768,3474.2,3473.1,1.73]
[1718748424904,2.4768,3474.2,3472.9,1.73]
[1718748425108,0.535508,3474.1,3472.9,4.60943]
[1718748425407,2.87828,3474.3,3472.9,4.60943]
[1718748425408,2.4764,3474.7,3473.6,3.757]
[1718748425718,2.4764,3474.7,3473.6,1.73]
[1718748426324,2.4764,3474.7,3473.7,0.55]
[1718748426527,0.823209,3474.6,3473.7,0.55]
[1718748428108,0.823209,3474.6,3473.8,0.11077597]
[1718748428649,0.823209,3474.6,3473.9,2.87857]
[1718748428859,2.4764,3474.7,3474.0,0.55]
[1718748429056,2.6735,3475.3,3474.1,2.87842]
[1718748429259,2.878,3474.7,3474.0,0.11077258]
[1718748429435,2.6735,3475.1,3474.2,0.11108465]
[1718748429627,3.0433245,3475.1,3474.3,0.55]
[1718748430138,3.0433245,3475.1,3474.4,0.11105898]
[1718748435328,2.027,3475.8,3474.5,3.757]
[1718748435329,2.5471,3475.8,3474.5,3.757]
[1718748435575,2.5471,3475.8,3475.0,1.73]
[1718748435857,2.5471,3475.8,3475.1,0.6609172]
[1718748437528,2.87637,3476.6,3475.3,2.87744]
[1718748437836,2.5471,3475.9,3475.4,0.11091211]
[1718748438035,2.8771,3475.8,3475.4,0.11091211]
[1718748438384,2.5471,3475.9,3474.8,2.87782]
[1718748438586,2.5471,3475.9,3474.5,5.027]
[1718748438587,2.5471,3475.9,3474.9,1.23622903]
[1718748438857,2.5471,3475.9,3474.9,0.66064603]
[1718748439952,2.5471,3475.5,3474.9,0.11064603]
[1718748440128,2.87746,3475.3,3474.0,3.757]
[1718748440469,2.5471,3475.1,3474.5,0.10650694]
[1718748440848,2.5471,3475.1,3474.1,1.73]
[1718748441042,2.5471,3475.1,3474.6,0.10660541]
[1718748441366,2.6412,3475.5,3474.7,0.10660371]
[1718748441874,3.193024,3475.5,3474.7,0.10660371]
[1718748442247,6.070344,3475.5,3474.3,1.73]
[1718748442465,6.070344,3475.5,3474.8,0.10670591]
[1718748442669,6.070344,3475.5,3474.4,0.55]
[1718748442875,0.8947464,3475.4,3474.9,0.10670421]
[1718748443033,0.8947464,3475.4,3474.6,4.60795]
[1718748443361,2.6412,3475.5,3474.8,1.73]
[1718748443566,2.6412,3475.5,3474.9,0.65667824]
[1718748446565,2.87738,3475.4,3474.9,0.10667824]
[1718748446866,0.26412,3475.4,3474.1,3.0]
[1718748447267,0.26412,3475.4,3474.2,0.10663446]
[1718748447456,0.26412,3475.4,3474.2,1.78663446]
[1718748447637,2.87753,3475.2,3474.2,4.83496609]
[1718748448038,2.87755,3475.2,3474.2,1.83496609]
[1718748448746,2.87755,3475.2,3474.2,0.10496609]
[1718748448947,2.87778,3474.9,3474.0,2.027]
[1718748449166,2.87778,3474.9,3474.1,0.10514761]
[1718748449365,3.701075,3474.8,3474.1,0.10514761]
[1718748449553,2.87805,3474.6,3473.4,3.29740004]
[1718748449758,3.701065,3474.8,3473.5,1.83546946]
[1718748449960,0.3700975,3474.7,3473.5,2.89820946]
[1718748450160,3.2481175,3474.7,3473.6,4.73]
[1718748450463,0.3700975,3474.7,3473.7,0.10545122]
[1718748450670,3.2480975,3474.7,3473.7,0.10545122]
[1718748450979,2.878,3474.7,3473.8,0.55]
[1718748451269,2.87788,3474.8,3473.9,0.10544782]
[1718748451466,0.575567,3474.7,3473.9,0.10544782]
[1718748451640,2.4764,3475.1,3473.9,0.10544782]
[1718748451839,2.4764,3475.1,3474.0,0.55]
[1718748452142,2.4764,3475.1,3473.3,2.87906]
[1718748452143,2.5666,3474.2,3474.1,0.10544443]
[1718748452361,2.5666,3474.2,3473.0,3.0]
[1718748452362,5.44496,3474.2,3473.0,3.0]
[1718748452677,2.5666,3474.2,3473.1,0.1054614]
[1718748452968,3.422939,3474.1,3473.1,0.1054614]
[1718748453159,3.422939,3474.1,3473.0,1.73]
[1718748453469,3.422939,3474.1,3473.1,0.1054614]
[1718748453670,2.5666,3474.0,3473.1,0.1054614]
[1718748453849,2.87884,3473.7,3473.1,0.1054614]
[1718748454169,2.5666,3473.6,3472.3,1.73]
[1718748454376,2.5666,3473.6,3472.4,0.10157729]
[1718748454555,5.44546,3473.6,3472.4,0.10157729]
[1718748454753,0.544546,3473.5,3472.4,0.10157729]
[1718748455293,3.423526,3473.5,3472.4,0.10157729]
[1718748455590,0.544546,3473.5,3472.4,0.10157729]
[1718748455793,0.544546,3473.5,3472.5,0.55]
[1718748455949,0.544546,3473.5,3472.6,0.1015739]
[1718748456285,0.5989976,3473.4,3472.6,0.1015739]
[1718748456784,2.6436,3474.1,3472.6,0.1015739]
[1718748456988,5.52204,3474.1,3472.9,1.73]
[1718748457319,2.87852,3474.0,3473.0,2.3815671]
[1718748457500,1.73512308,3473.9,3473.0,2.3815671]
[1718748458224,2.6436,3474.1,3473.2,6.63618]
[1718748458385,2.6436,3474.1,3473.3,0.55]
[1718748458585,2.6436,3474.1,3473.4,0.10206524]
[1718748459518,3.32644122,3474.1,3473.4,0.10206524]
[1718748459683,4.2215133,3474.1,3473.4,0.10206524]
[1718748460023,3.32644122,3474.1,3473.4,0.10206524]
[1718748460401,4.2215133,3474.1,3473.4,0.10206524]
[1718748460597,3.32644122,3474.1,3473.4,0.10206524]
[1718748461277,4.2215133,3474.1,3473.4,0.10206524]
[1718748461510,3.21349428,3474.0,3473.4,0.10206524]
[1718748461721,1.19382958,3473.5,3472.4,0.29744519]
[1718748461872,0.89535551,3473.3,3472.0,4.90716]
[1718748462071,1.54137999,3473.3,3472.1,0.490716]
[1718748462321,0.89535551,3473.2,3472.1,0.09173123]
[1718748462528,0.89535551,3473.2,3472.1,1.82173123]
[1718748462998,4.42048999,3473.3,3472.1,1.82173123]
[1718748463193,2.87919,3473.2,3472.1,4.82173123]
[1718748463399,4.62386924,3473.2,3472.1,4.82173123]
[1718748463781,4.62386924,3473.2,3472.2,2.28]
[1718748463985,3.72851373,3473.2,3472.3,0.08831718]
[1718748464218,0.86967066,3473.1,3472.4,0.55]
[1718748464598,0.86967066,3473.1,3472.5,0.08831379]
[1718748465635,3.34437066,3473.1,3472.5,0.08831379]
[1718748465783,5.35403,3473.1,3472.5,0.08831379]
[1718748465984,2.87966,3472.7,3472.0,1.73]
[1718748466184,0.37750155,3472.6,3471.3,7.90769]
[1718748466433,0.89535551,3472.9,3471.4,0.08801248]
[1718748466585,2.87953,3472.8,3471.4,1.81801248]
[1718748466788,4.06090748,3472.9,3471.6,4.61051]
[1718748466980,4.06090748,3472.9,3471.8,1.73]
[1718748467195,3.9105783,3472.8,3471.9,0.63830406]
[1718748468197,2.87961,3472.7,3471.9,0.63830406]
[1718748468412,3.9105683,3472.8,3471.9,0.63830406]
[1718748468596,2.87953,3472.8,3471.9,0.63830406]
[1718748470028,2.87936,3473.0,3471.9,2.36830406]
[1718748470339,2.87944,3472.9,3471.9,2.36830406]
[1718748470487,0.82335,3472.8,3471.9,2.36830406]
[1718748470916,2.87945,3472.9,3471.9,2.36830406]
[1718748471312,2.87945,3472.9,3472.0,0.05759714]
[1718748471530,2.87945,3472.9,3472.1,0.55]
[1718748471717,2.87945,3472.9,3472.1,0.63830066]
[1718748474212,2.87953,3472.8,3472.1,0.63830066]
[1718748474407,0.535405,3472.9,3472.1,0.63830066]
[1718748474721,3.414905,3472.9,3472.1,0.63830066]
[1718748475235,0.535405,3472.9,3472.1,0.63830066]
[1718748475450,2.4747,3473.1,3472.2,1.73]
[1718748475451,5.35397,3473.1,3472.2,1.73]
[1718748475751,5.35397,3473.1,3472.3,0.55]